fUST/lending_fUST_20250307
["ID","MTS","AMOUNT","RATE_DAILY","PERIOD"]
[355565619,1741301440972,-500.0,0.00032876,9]
[355565621,1741301440982,-1396.02,0.00032876,9]
[355565623,1741301441033,-500.0,0.00032876,9]
[355565624,1741301441043,-1995.27,0.00032876,9]
[355565625,1741301441052,-500.0,0.00032876,9]
[355565626,1741301441061,-500.0,0.00032876,9]
[355565627,1741301441071,-500.0,0.00032876,9]
[355565628,1741301441080,-300.34375399,0.00032876,9]
[355565629,1741301441089,-500.0,0.00032876,9]
[355565630,1741301441098,-500.0,0.00032876,9]
[355565631,1741301441107,-500.0,0.00032876,9]
[355565632,1741301441117,-683.08,0.00032876,9]
[355565633,1741301441126,-390.932296,0.00032876,9]
[355565634,1741301441136,-500.0,0.00032876,9]
[355565635,1741301441146,-500.0,0.00032876,9]
[355565636,1741301441156,-500.0,0.00032876,9]
[355565637,1741301441165,-500.0,0.00032876,9]
[355565638,1741301441176,-500.0,0.00032876,9]
[355565639,1741301441185,-500.0,0.00032876,9]
[355565640,1741301441195,-1433.96,0.00032876,9]
[355565642,1741301441204,-971.28,0.00032876,9]
[355565644,1741301441213,-1423.06,0.00032876,9]
[355565646,1741301441223,-500.0,0.00032876,9]
[355565648,1741301441233,-1100.93,0.00032876,9]
[355565650,1741301441243,-618.8,0.00032876,9]
[355565652,1741301441252,-500.0,0.00032876,9]
[355565654,1741301441261,-500.0,0.00032876,9]
[355565656,1741301441270,-500.0,0.00032876,9]
[355565658,1741301441281,-815.87,0.00032876,9]
[355565660,1741301441291,-989.52,0.00032876,9]
[355565662,1741301441300,-500.0,0.00032876,9]
[355565664,1741301441309,-500.0,0.00032876,9]
[355565666,1741301441319,-500.0,0.00032876,9]
[355565668,1741301441328,-500.0,0.00032876,9]
[355565670,1741301441338,-500.0,0.00032876,9]
[355565672,1741301441347,-537.23,0.00032876,9]
[355565674,1741301441356,-570.47,0.00032876,9]
[355565676,1741301441365,-1000.0,0.00032876,9]
[355565678,1741301441374,-500.0,0.00032876,9]
[355565680,1741301441383,-500.0,0.00032876,9]
[355565682,1741301441393,-500.0,0.00032876,9]
[355565684,1741301441402,-500.0,0.00032876,9]
[355565686,1741301441411,-533.15,0.00032876,9]
[355565688,1741301441420,-500.0,0.00032876,9]
[355565690,1741301441429,-665.54,0.00032876,9]
[355565692,1741301441438,-500.0,0.00032876,9]
[355565694,1741301441447,-1175.21,0.00032876,9]
[355565696,1741301441457,-930.88,0.00032876,9]
[355565698,1741301441466,-500.0,0.00032876,9]
[355565700,1741301441475,-2307.79,0.00032876,9]
[355565702,1741301441485,-500.0,0.00032876,9]
[355565704,1741301441494,-952.45,0.00032876,9]
[355565706,1741301441503,-392.73980001,0.00032876,9]
[355565708,1741301441512,-2121.41,0.00032876,9]
[355565710,1741301441522,-500.0,0.00032876,9]
[355565712,1741301441531,-500.0,0.00032876,9]
[355565714,1741301441540,-2200.49,0.00032876,9]
[355565716,1741301441552,-500.0,0.00032876,9]
[355565718,1741301441561,-1819.45,0.00032876,9]
[355565720,1741301441571,-1537.35,0.00032876,9]
[355565722,1741301441580,-500.0,0.00032876,9]
[355565724,1741301441591,-500.0,0.00032876,9]
[355565726,1741301441600,-500.0,0.00032876,9]
[355565728,1741301441609,-500.0,0.00032876,9]
[355565730,1741301441618,-500.0,0.00032876,9]
[355565732,1741301441627,-500.0,0.00032876,9]
[355565734,1741301441638,-500.0,0.00032876,9]
[355565736,1741301441647,-664.58,0.00032876,9]
[355565738,1741301441657,-500.0,0.00032876,9]
[355565740,1741301441666,-500.0,0.00032876,9]
[355565742,1741301441675,-956.88,0.00032876,9]
[355565744,1741301441685,-520.59083124,0.00032876,9]
[355565746,1741301441694,-1876.01,0.00032876,9]
[355565748,1741301441703,-500.0,0.00032876,9]
[355565750,1741301441713,-1098.4,0.00032876,9]
[355565752,1741301441722,-1649.84,0.00032876,9]
[355565754,1741301441731,-500.0,0.00032876,9]
[355565756,1741301441741,-500.0,0.00032876,9]
[355565758,1741301441750,-500.0,0.00032876,9]
[355565760,1741301441759,-960.27,0.00032876,9]
[355565762,1741301441768,-500.0,0.00032876,9]
[355565764,1741301441778,-500.0,0.00032876,9]
[355565766,1741301441787,-972.59,0.00032876,9]
[355565768,1741301441796,-1274.17,0.00032876,9]
[355565770,1741301441805,-500.0,0.00032876,9]
[355565772,1741301441814,-500.0,0.00032876,9]
[355565774,1741301441823,-500.0,0.00032876,9]
[355565776,1741301441832,-500.0,0.00032876,9]
[355565778,1741301441842,-500.0,0.00032876,9]
[355565780,1741301441851,-500.0,0.00032876,9]
[355565782,1741301441860,-500.0,0.00032876,9]
[355565784,1741301441870,-741.81,0.00032876,9]
[355565786,1741301441879,-979.54,0.00032876,9]
[355565788,1741301441888,-826.13,0.00032876,9]
[355565790,1741301441897,-500.0,0.00032876,9]
[355565792,1741301441907,-2250.01,0.00032876,9]
[355565794,1741301441916,-594.26,0.00032876,9]
[355565796,1741301441926,-500.0,0.00032876,9]
[355565798,1741301441935,-611.98349918,0.00032876,9]
[355565800,1741301441945,-1579.98,0.00032876,9]
[355565802,1741301441953,-1046.96,0.00032876,9]
[355565803,1741301441963,-500.0,0.00032876,9]
[355565806,1741301441972,-500.0,0.00032876,9]
[355565808,1741301441983,-500.0,0.00032876,9]
[355565809,1741301441992,-500.0,0.00032876,9]
[355565811,1741301442001,-1775.67,0.00032876,9]
[355565813,1741301442011,-3064.88,0.00032876,9]
[355565815,1741301442020,-500.0,0.00032876,9]
[355565817,1741301442030,-500.0,0.00032876,9]
[355565819,1741301442040,-800.95,0.00032876,9]
[355565821,1741301442049,-664.65,0.00032876,9]
[355565823,1741301442059,-500.0,0.00032876,2]
[355565825,1741301442068,-500.0,0.00032876,9]
[355565827,1741301442077,-500.0,0.00032876,9]
[355565829,1741301442086,-500.0,0.00032876,9]
[355565831,1741301442095,-500.0,0.00032876,9]
[355565833,1741301442104,-500.0,0.00032876,9]
[355565835,1741301442114,-516.88,0.00032876,9]
[355565837,1741301442123,-500.0,0.00032876,9]
[355565839,1741301442132,-500.0,0.00032876,9]
[355565841,1741301442142,-54633.51520673,0.00032876,7]
[355566717,1741302189365,310.498,0.00017,10]
[355566719,1741302411087,-194.92458118,0.00019022,2]
[355566778,1741302632677,-550.0,0.000189,2]
[355566780,1741302632688,-936.38833191,0.000189,2]
[355566782,1741302632698,-305.07541882,0.00019022,2]
[355566784,1741302632707,-500.0,0.000192,2]
[355566786,1741302632717,-500.0,0.000192,2]
[355566788,1741302632726,-500.0,0.000192,2]
[355566790,1741302632736,-500.0,0.000192,2]
[355566792,1741302632745,-500.0,0.000192,2]
[355566794,1741302632755,-400.0,0.000192,2]
[355566796,1741302632764,-1486.38833191,0.000239,2]
[355566798,1741302632773,-178.0,0.00026171,2]
[355566800,1741302632783,-24900.0,0.00026181,2]
[355566802,1741302632792,-250.0,0.00026291,2]
[355566804,1741302632801,-266.089555,0.00026443,2]
[355566805,1741302632811,-9240.7010472,0.000269,4]
[355566807,1741302632820,-178.0,0.00028022,2]
[355566809,1741302632830,-1000.0,0.0002803,2]
[355566810,1741302632839,-1000.0,0.00028032,2]
[355566811,1741302632848,-183.50509327,0.00028032,2]
[355566812,1741302632889,-165.49490773,0.00028032,2]
[355566813,1741302632898,-5038.8323369,0.00028032,2]
[355566814,1741302632908,-1486.38833191,0.000289,2]
[355566815,1741302632919,-200.0,0.00029252,2]
[355566816,1741302632933,-178.0,0.00030088,2]
[355566817,1741302632943,-151.0,0.00030098,2]
[355566818,1741302632952,-500.0,0.00030098,2]
[355566819,1741302632963,-540.0,0.00030098,2]
[355566820,1741302632972,-583.2,0.00030098,2]
[355566821,1741302632982,-629.856,0.00030098,2]
[355566822,1741302632991,-680.24448,0.00030098,2]
[355566823,1741302633002,-922.98636042,0.00030098,2]
[355566824,1741302633012,-178.0,0.00030106,2]
[355566825,1741302633022,-178.0,0.00030106,2]
[355566826,1741302633032,-10000.0,0.00030116,2]
[355566827,1741302633042,-163.08,0.00030646,2]
[355566828,1741302633052,-500.0,0.0003077,2]
[355566829,1741302633062,-176.1264,0.00031194,2]
[355566830,1741302633072,-302.0,0.00031742,2]
[355566831,1741302633082,-293.59,0.00032,14]
[355566832,1741302633092,-380.0,0.00032445,2]
[355566833,1741302633102,-315.18,0.000327,30]
[355566834,1741302633111,-394.56350996,0.00032755,2]
[355566835,1741302633121,-394.56350992,0.0003276,2]
[355566836,1741302633131,-1013.99699337,0.00032813,2]
[355566837,1741302633141,-150.29,0.00032845,3]
[355566838,1741302633150,-500.0,0.00032854,2]
[355566839,1741302633160,-500.0,0.00032854,2]
[355566840,1741302633169,-500.0,0.00032854,2]
[355566841,1741302633180,-500.0,0.00032854,2]
[355566842,1741302633190,-500.0,0.00032854,2]
[355566843,1741302633199,-511.42291526,0.00032854,2]
[355566844,1741302633210,-500.0,0.00032854,2]
[355566845,1741302633219,-270.54521934,0.00032854,2]
[355566846,1741302633230,-5614.60197327,0.00032854,2]
[355566847,1741302633239,-270.54521934,0.00032855,2]
[355566848,1741302633260,-5614.60197327,0.00032855,2]
[355566849,1741302633271,-1082.18087736,0.00032856,2]
[355566850,1741302633282,-22458.4078931,0.00032856,2]
[355566851,1741302633292,-500.0,0.00032865,2]
[355566852,1741302633302,-500.0,0.00032865,2]
[355566853,1741302633313,-212.50502925,0.00032865,2]
[355566854,1741302633323,-544.36768042,0.00032865,2]
[355566855,1741302633334,-500.0,0.00032865,2]
[355566856,1741302633344,-500.0,0.00032865,2]
[355566857,1741302633354,-180.61161264,0.00032865,2]
[355566858,1741302633365,-3246.54263208,0.00032866,2]
[355566859,1741302633375,-67375.2236792,0.00032866,2]
[355566860,1741302633385,-241.8,0.00032871,2]
[355566861,1741302633395,-482.15475534,0.00032873,5]
[355566862,1741302633405,-500.91689609,0.00032873,5]
[355566863,1741302633414,-500.0,0.00032873,5]
[355566864,1741302633424,-500.0,0.00032873,5]
[355566865,1741302633434,-500.0,0.00032873,5]
[355566866,1741302633444,-500.0,0.00032873,5]
[355566867,1741302633454,-500.0,0.00032873,5]
[355566868,1741302633463,-263.6816285,0.00032873,5]
[355566869,1741302633473,-500.0,0.00032873,2]
[355566870,1741302633483,-500.14574738,0.00032873,5]
[355566871,1741302633493,-500.0,0.00032873,5]
[355566872,1741302633503,-500.0,0.00032873,5]
[355566873,1741302633513,-254.93296381,0.00032873,5]
[355566874,1741302633523,-206.20291518,0.00032873,5]
[355566875,1741302633533,-500.0,0.00032873,5]
[355566876,1741302633543,-500.0,0.00032873,5]
[355566877,1741302633552,-500.0,0.00032873,5]
[355566878,1741302633562,-500.0,0.00032873,5]
[355566879,1741302633572,-473.1473063,0.00032873,5]
[355566880,1741302633582,-500.0,0.00032873,5]
[355566881,1741302633592,-500.92560493,0.00032873,5]
[355566882,1741302633602,-500.0,0.00032873,5]
[355566883,1741302633613,-500.0,0.00032873,5]
[355566884,1741302633623,-500.10605809,0.00032873,5]
[355566885,1741302633633,-277.4606212,0.00032873,5]
[355566886,1741302633642,-500.0,0.00032873,5]
[355566887,1741302633652,-500.0,0.00032873,5]
[355566888,1741302633663,-201.44196182,0.00032873,5]
[355566889,1741302633673,-327.68473679,0.00032873,5]
[355566890,1741302633683,-500.0,0.00032873,5]
[355566891,1741302633693,-501.6128383,0.00032873,5]
[355566892,1741302633702,-500.0,0.00032873,5]
[355566893,1741302633712,-160.50995836,0.00032873,5]
[355566894,1741302633722,-500.0,0.00032873,5]
[355566895,1741302633732,-500.0,0.00032873,5]
[355566896,1741302633742,-500.0,0.00032873,5]
[355566897,1741302633752,-500.0,0.00032873,5]
[355566898,1741302633762,-453.65488435,0.00032873,5]
[355566899,1741302633772,-249.59934652,0.00032875,7]
[355566900,1741302633782,-500.0,0.00032876,9]
[355566901,1741302633792,-608.36129073,0.00032876,9]
[355566902,1741302633805,-500.0,0.00032876,9]
[355566903,1741302633819,-500.0,0.00032876,2]
[355566904,1741302633828,-1028.26,0.00032876,9]
[355566905,1741302633839,-1374.21,0.00032876,9]
[355566906,1741302633849,-801.83,0.00032876,9]
[355566907,1741302633859,-737.6,0.00032876,9]
[355566908,1741302633869,-500.0,0.00032876,9]
[355566909,1741302634129,-500.0,0.00032876,9]
[355566910,1741302634140,-500.0,0.00032876,9]
[355566911,1741302634150,-500.0,0.00032876,9]
[355566912,1741302634160,-259.18068958,0.00032876,9]
[355566913,1741302634170,-500.0,0.00032876,9]
[355566914,1741302634180,-500.0,0.00032876,9]
[355566915,1741302634191,-500.0,0.00032876,9]
[355566916,1741302634200,-500.0,0.00032876,9]
[355566917,1741302634210,-500.0,0.00032876,9]
[355566918,1741302634220,-500.0,0.00032876,9]
[355566919,1741302634230,-1055.06,0.00032876,9]
[355566920,1741302634239,-892.1,0.00032876,9]
[355566921,1741302634249,-500.0,0.00032876,9]
[355566922,1741302634259,-500.0,0.00032876,9]
[355566923,1741302634269,-500.0,0.00032876,9]
[355566924,1741302634278,-500.0,0.00032876,9]
[355566925,1741302634288,-932.07,0.00032876,9]
[355566926,1741302634298,-500.0,0.00032876,9]
[355566927,1741302634307,-500.0,0.00032876,9]
[355566928,1741302634316,-500.0,0.00032876,9]
[355566929,1741302634326,-917.01,0.00032876,9]
[355566930,1741302634335,-500.0,0.00032876,9]
[355566931,1741302634345,-500.0,0.00032876,9]
[355566932,1741302634356,-500.0,0.00032876,9]
[355566933,1741302634366,-831.05,0.00032876,9]
[355566934,1741302634376,-500.0,0.00032876,9]
[355566935,1741302634386,-500.0,0.00032876,9]
[355566936,1741302634395,-500.0,0.00032876,9]
[355566937,1741302634405,-500.0,0.00032876,9]
[355566938,1741302634415,-500.0,0.00032876,9]
[355566939,1741302634424,-500.0,0.00032876,9]
[355566940,1741302634434,-500.0,0.00032876,9]
[355566941,1741302634443,-986.66,0.00032876,5]
[355566942,1741302634453,-416.72762937,0.00032876,9]
[355566943,1741302634463,-508.39488865,0.00032876,9]
[355566944,1741302634474,-500.0,0.00032876,9]
[355566945,1741302634483,-500.0,0.00032876,9]
[355566946,1741302634492,-928.25,0.00032876,9]
[355566947,1741302634502,-500.0,0.00032876,9]
[355566948,1741302634512,-1797.85,0.00032876,9]
[355566949,1741302634521,-791.71,0.00032876,9]
[355566950,1741302634531,-580.14156837,0.00032876,9]
[355566951,1741302634541,-938.73,0.00032876,9]
[355566952,1741302634550,-722.83,0.00032876,9]
[355566953,1741302634560,-500.0,0.00032876,9]
[355566954,1741302634569,-974.8,0.00032876,9]
[355566955,1741302634579,-500.0,0.00032876,9]
[355566956,1741302634588,-500.0,0.00032876,9]
[355566957,1741302634598,-500.0,0.00032876,9]
[355566958,1741302634607,-500.0,0.00032876,9]
[355566959,1741302634617,-614.05,0.00032876,9]
[355566960,1741302634626,-500.0,0.00032876,9]
[355566961,1741302634636,-500.0,0.00032876,9]
[355566962,1741302634645,-500.0,0.00032876,9]
[355566963,1741302634655,-710.9,0.00032876,9]
[355566964,1741302634664,-500.0,0.00032876,9]
[355566965,1741302634673,-500.0,0.00032876,9]
[355566966,1741302634683,-500.0,0.00032876,9]
[355566967,1741302634692,-500.0,0.00032876,9]
[355566968,1741302634702,-500.0,0.00032876,9]
[355566969,1741302634712,-474.1473533,0.00032876,9]
[355566970,1741302634721,-654.62,0.00032876,9]
[355566971,1741302634731,-500.0,0.00032876,9]
[355566972,1741302634740,-500.0,0.00032876,9]
[355566973,1741302634750,-974.2,0.00032876,9]
[355566974,1741302634760,-500.0,0.00032876,9]
[355566975,1741302634769,-500.0,0.00032876,9]
[355566976,1741302634778,-500.0,0.00032876,9]
[355566977,1741302634788,-500.0,0.00032876,9]
[355566978,1741302634798,-500.0,0.00032876,9]
[355566979,1741302634808,-500.0,0.00032876,9]
[355566980,1741302634817,-500.0,0.00032876,9]
[355566981,1741302634827,-1337.86,0.00032876,9]
[355566982,1741302634836,-775.43,0.00032876,9]
[355566983,1741302634847,-500.0,0.00032876,9]
[355566984,1741302634857,-327.67789295,0.00032876,9]
[355566985,1741302634866,-500.0,0.00032876,9]
[355566986,1741302634876,-612.84073594,0.00032876,9]
[355566987,1741302634885,-930.81,0.00032876,9]
[355566988,1741302634895,-500.07288227,0.00032876,9]
[355566989,1741302634904,-1912.14,0.00032876,9]
[355566990,1741302634914,-255.24972345,0.00032876,9]
[355566991,1741302634929,-500.0,0.00032876,9]
[355566992,1741302634939,-500.0,0.00032876,9]
[355566993,1741302634948,-500.0,0.00032876,9]
[355566994,1741302634958,-1188.68,0.00032876,9]
[355566995,1741302634969,-781.88,0.00032876,9]
[355566996,1741302634978,-500.0,0.00032876,9]
[355566997,1741302634987,-500.0,0.00032876,9]
[355566998,1741302634997,-500.0,0.00032876,9]
[355566999,1741302635007,-500.0,0.00032876,9]
[355567000,1741302635017,-500.0,0.00032876,9]
[355567001,1741302635028,-546.04443159,0.00032876,9]
[355567002,1741302635038,-500.0,0.00032876,9]
[355567003,1741302635047,-500.0,0.00032876,9]
[355567004,1741302635057,-500.0,0.00032876,9]
[355567005,1741302635066,-200.0,0.00032876,7]
[355567006,1741302635075,-514.85,0.00032876,9]
[355567007,1741302635085,-502.70261033,0.00032876,9]
[355567008,1741302635094,-500.0,0.00032876,9]
[355567009,1741302635104,-500.0,0.00032876,9]
[355567010,1741302635113,-500.0,0.00032876,9]
[355567011,1741302635122,-1363.76,0.00032876,9]
[355567012,1741302635132,-536.74,0.00032876,9]
[355567013,1741302635142,-500.05888911,0.00032876,9]
[355567014,1741302635152,-500.0,0.00032876,9]
[355567015,1741302635162,-500.0,0.00032876,9]
[355567016,1741302635172,-500.0,0.00032876,9]
[355567017,1741302635183,-523.42321036,0.00032876,9]
[355567018,1741302635194,-500.0,0.00032876,9]
[355567019,1741302635203,-500.0,0.00032876,9]
[355567020,1741302635213,-500.0,0.00032876,9]
[355567021,1741302635223,-637.81,0.00032876,9]
[355567022,1741302635233,-500.0,0.00032876,9]
[355567023,1741302635243,-948.29,0.00032876,9]
[355567024,1741302635253,-500.0,0.00032876,9]
[355567025,1741302635263,-500.0,0.00032876,9]
[355567026,1741302635275,-500.0,0.00032876,9]
[355567027,1741302635285,-200.01847683,0.00032876,9]
[355567028,1741302635295,-500.0,0.00032876,9]
[355567029,1741302635305,-500.0,0.00032876,9]
[355567030,1741302635314,-500.0,0.00032876,9]
[355567031,1741302635324,-500.0,0.00032876,9]
[355567032,1741302635333,-500.0,0.00032876,9]
[355567033,1741302635343,-1884.11,0.00032876,9]
[355567034,1741302635353,-546.7,0.00032876,9]
[355567035,1741302635363,-500.0,0.00032876,9]
[355567036,1741302635373,-500.0,0.00032876,9]
[355567037,1741302635383,-2211.63,0.00032876,9]
[355567038,1741302635392,-1515.06,0.00032876,9]
[355567039,1741302635401,-531.68,0.00032876,9]
[355567040,1741302635411,-2033.02,0.00032876,9]
[355567041,1741302635420,-520.27766781,0.00032876,9]
[355567042,1741302635433,-500.89,0.00032876,9]
[355567043,1741302635442,-500.0,0.00032876,9]
[355567044,1741302635451,-2228.99,0.00032876,9]
[355567045,1741302635460,-500.0,0.00032876,9]
[355567046,1741302635470,-500.0,0.00032876,9]
[355567047,1741302635479,-1126.24,0.00032876,9]
[355567048,1741302635490,-1760.11,0.00032876,9]
[355567049,1741302635500,-500.0,0.00032876,9]
[355567050,1741302635510,-500.0,0.00032876,9]
[355567051,1741302635519,-500.0,0.00032876,9]
[355567052,1741302635531,-1048.84,0.00032876,9]
[355567053,1741302635540,-500.0,0.00032876,9]
[355567054,1741302635551,-500.0,0.00032876,9]
[355567055,1741302635561,-1002.38,0.00032876,9]
[355567056,1741302635570,-500.0,0.00032876,9]
[355567057,1741302635583,-542.98285443,0.00032876,9]
[355567058,1741302635592,-798.05,0.00032876,9]
[355567059,1741302635601,-500.0,0.00032876,9]
[355567060,1741302635611,-500.0,0.00032876,9]
[355567061,1741302635621,-1826.84,0.00032876,9]
[355567062,1741302635630,-500.0,0.00032876,9]
[355567063,1741302635639,-500.0,0.00032876,9]
[355567064,1741302635649,-1622.76,0.00032876,9]
[355567065,1741302635658,-500.0,0.00032876,9]
[355567066,1741302635668,-500.0,0.00032876,9]
[355567067,1741302635678,-500.0,0.00032876,9]
[355567068,1741302635688,-500.0,0.00032876,9]
[355567069,1741302635698,-500.0,0.00032876,9]
[355567070,1741302635708,-500.0,0.00032876,9]
[355567071,1741302635717,-636.89,0.00032876,9]
[355567072,1741302635727,-500.0,0.00032876,9]
[355567073,1741302635736,-500.0,0.00032876,9]
[355567074,1741302635746,-500.0,0.00032876,9]
[355567075,1741302635756,-500.0,0.00032876,9]
[355567076,1741302635765,-1221.08,0.00032876,9]
[355567077,1741302635776,-500.0,0.00032876,9]
[355567078,1741302635785,-500.0,0.00032876,9]
[355567079,1741302635794,-916.8,0.00032876,9]
[355567080,1741302635803,-500.0,0.00032876,9]
[355567081,1741302635812,-500.0,0.00032876,9]
[355567082,1741302635821,-500.0,0.00032876,9]
[355567083,1741302635830,-514.83976532,0.00032876,9]
[355567084,1741302635839,-1177.63,0.00032876,9]
[355567085,1741302635848,-2246.84,0.00032876,9]
[355567086,1741302635858,-1514.15,0.00032876,9]
[355567087,1741302635867,-920.26,0.00032876,9]
[355567088,1741302635877,-499.95,0.00032876,9]
[355567089,1741302635886,-500.0,0.00032876,2]
[355567090,1741302635895,-636.95,0.00032876,9]
[355567091,1741302635904,-1099.54,0.00032876,9]
[355567092,1741302635914,-500.0,0.00032876,9]
[355567093,1741302635925,-500.0,0.00032876,9]
[355567094,1741302635936,-500.0,0.00032876,9]
[355567095,1741302635945,-500.0,0.00032876,9]
[355567096,1741302635955,-500.0,0.00032876,9]
[355567097,1741302635964,-500.0,0.00032876,9]
[355567098,1741302635974,-2139.13,0.00032876,9]
[355567099,1741302635984,-569.5,0.00032876,9]
[355567100,1741302635993,-500.0,0.00032876,9]
[355567101,1741302636004,-500.0,0.00032876,9]
[355567102,1741302636013,-500.0,0.00032876,9]
[355567103,1741302636023,-645.03,0.00032876,9]
[355567104,1741302636032,-514.2,0.00032876,9]
[355567105,1741302636042,-551.81,0.00032876,9]
[355567106,1741302636051,-1003.33,0.00032876,9]
[355567107,1741302636061,-500.0,0.00032876,9]
[355567108,1741302636071,-500.0,0.00032876,9]
[355567109,1741302636080,-639.81,0.00032876,9]
[355567110,1741302636089,-1972.71,0.00032876,9]
[355567111,1741302636099,-4387.72,0.00032876,9]
[355567112,1741302636108,-767.57,0.00032876,9]
[355567113,1741302636118,-893.06,0.00032876,9]
[355567114,1741302636128,-2937.18,0.00032876,9]
[355567115,1741302636137,-714.27,0.00032876,9]
[355567116,1741302636147,-1832.74,0.00032876,9]
[355567117,1741302636156,-500.0,0.00032876,9]
[355567118,1741302636166,-500.0,0.00032876,9]
[355567119,1741302636175,-500.0,0.00032876,9]
[355567120,1741302636185,-500.0,0.00032876,9]
[355567121,1741302636194,-720.92,0.00032876,9]
[355567122,1741302636203,-521.48,0.00032876,9]
[355567123,1741302636213,-500.0,0.00032876,9]
[355567124,1741302636222,-510.09916511,0.00032876,9]
[355567125,1741302636231,-740.3,0.00032876,9]
[355567126,1741302636241,-3082.57,0.00032876,9]
[355567127,1741302636251,-500.0,0.00032876,9]
[355567128,1741302636260,-500.0,0.00032876,9]
[355567129,1741302636271,-500.0,0.00032876,9]
[355567130,1741302636280,-667.59,0.00032876,9]
[355567131,1741302636290,-1164.14,0.00032876,9]
[355567132,1741302636300,-500.0,0.00032876,9]
[355567133,1741302636309,-1756.15,0.00032876,9]
[355567134,1741302636319,-2713.41,0.00032876,9]
[355567135,1741302636328,-180499.56,0.00032876,7]
[355567136,1741302636338,-500.0,0.00032876,9]
[355567137,1741302636348,-1591.12,0.00032876,9]
[355567138,1741302636357,-1561.63,0.00032876,9]
[355567139,1741302636366,-509.81,0.00032876,9]
[355567140,1741302636375,-644.04,0.00032876,9]
[355567141,1741302636385,-3063.64,0.00032876,9]
[355567142,1741302636394,-2081.39,0.00032876,9]
[355567143,1741302636403,-652.71,0.00032876,9]
[355567144,1741302636412,-532.27993076,0.00032876,9]
[355567145,1741302636422,-500.0,0.00032876,9]
[355567146,1741302636431,-1276.71,0.00032876,9]
[355567147,1741302636441,-500.0,0.00032876,9]
[355567148,1741302636450,-2884.48,0.00032876,9]
[355567149,1741302636459,-500.0,0.00032876,9]
[355567150,1741302636468,-3137.27,0.00032876,9]
[355567151,1741302636478,-4031.88,0.00032876,9]
[355567152,1741302636487,-2662.52,0.00032876,9]
[355567153,1741302636496,-500.0,0.00032876,9]
[355567154,1741302636506,-964.65,0.00032876,9]
[355567155,1741302636515,-964.65,0.00032876,9]
[355567156,1741302636527,-964.65,0.00032876,9]
[355567157,1741302636536,-964.65,0.00032876,9]
[355567158,1741302636547,-964.65,0.00032876,9]
[355567159,1741302636556,-500.0,0.00032876,9]
[355567160,1741302636566,-964.65,0.00032876,9]
[355567161,1741302636575,-500.0,0.00032876,9]
[355567162,1741302636585,-964.65,0.00032876,9]
[355567163,1741302636594,-964.65,0.00032876,9]
[355567164,1741302636603,-13103.56,0.00032876,9]
[355567165,1741302636613,-964.65,0.00032876,9]
[355567166,1741302636622,-964.65,0.00032876,9]
[355567167,1741302636632,-964.65,0.00032876,9]
[355567168,1741302636641,-964.65,0.00032876,9]
[355567169,1741302636651,-964.65,0.00032876,9]